fUSD/lending_fUSD_20251206
["ID","MTS","AMOUNT","RATE_DAILY","PERIOD"]
[396589631,1765061469484,-784.46,0.00016999,2]
[396589632,1765061469493,-784.46,0.00016999,2]
[396589633,1765061469502,-784.46,0.00016999,2]
[396589634,1765061469511,-784.46,0.00016999,2]
[396589635,1765061469521,-784.5,0.00016999,2]
[396589636,1765061469530,-204030.99848881,0.00017,2]
[396589637,1765061469540,-425.01,0.00017,7]
[396589638,1765061469549,-360772.43998683,0.00017,2]
[396589639,1765061470527,-1396.82961508,0.00016421,2]
[396589640,1765061470563,-1415.83188838,0.00016421,2]
[396589641,1765061470642,-2018.73099543,0.00016421,2]
[396589642,1765061470653,-2210.079186,0.00016421,2]
[396589643,1765061471225,-317.868145,0.00016421,2]
[396589644,1765061471246,-635.69567518,0.00016421,2]
[396589645,1765061471256,-500.0,0.00016438,2]
[396589646,1765061471265,-500.0,0.00016438,2]
[396589647,1765061471275,-500.0,0.00016438,2]
[396589648,1765061471284,-500.0,0.00016438,2]
[396589649,1765061471295,-500.0,0.00016438,2]
[396589650,1765061471304,-500.0,0.00016438,2]
[396589651,1765061471314,-150.655292,0.00016438,2]
[396589652,1765061471325,-500.0,0.00016438,2]
[396589653,1765061471338,-150.655292,0.00016438,2]
[396589654,1765061471349,-150.655292,0.00016438,2]
[396589655,1765061471358,-150.655292,0.00016438,2]
[396589656,1765061471368,-500.0,0.00016438,2]
[396589657,1765061471378,-500.0,0.00016438,2]
[396589658,1765061471388,-150.655292,0.00016438,2]
[396589659,1765061471398,-500.0,0.00016438,2]
[396589660,1765061471408,-150.655292,0.00016438,2]
[396589661,1765061471418,-150.655292,0.00016438,2]
[396589662,1765061471427,-500.0,0.00016438,2]
[396589663,1765061471437,-150.655292,0.00016438,2]
[396589664,1765061471447,-150.655292,0.00016438,2]
[396589665,1765061471457,-500.0,0.00016712,2]
[396589666,1765061471467,-475.66131696,0.00016712,2]
[396589667,1765061471481,-60.34868304,0.00016712,2]
[396589668,1765061471492,-500.0,0.00016712,2]
[396589669,1765061471503,-467.57,0.00016712,2]
[396589670,1765061471513,-151.0,0.0001683,2]
[396589671,1765061471524,-151.0,0.0001683,2]
[396589672,1765061471534,-1299.05080011,0.000169,2]
[396589673,1765061471545,-253.0,0.00016985,2]
[396589674,1765061471555,-500.0,0.00016986,2]
[396589675,1765061471566,-500.0,0.00016986,2]
[396589676,1765061471576,-151.0,0.00016994,2]
[396589677,1765061471586,-720852.55560721,0.00017,2]
[396589678,1765061471596,-5000.78945612,0.00017,2]
[396589679,1765061471607,-150.0,0.00017,2]
[396589680,1765061471616,-3691.76133141,0.00017,2]
[396589681,1765061471626,-150.0,0.00017,2]
[396589682,1765061471638,-1273.11761226,0.00017,2]
[396589683,1765061471648,-150.0,0.00017,2]
[396589684,1765061471659,-4299.91359588,0.00017,2]
[396589685,1765061471670,-150.0,0.00017,2]
[396589686,1765061471680,-1128.99207094,0.00017,2]
[396589687,1765061471690,-151.0,0.00017,2]
[396589688,1765061471701,-769694.46378522,0.00017,2]
[396589689,1765061471718,-60747.47474999,0.00017,2]
[396589690,1765061471732,-60567.27066417,0.00017,2]
[396589691,1765061800926,748.0,0.00025,120]
[396589698,1765062631674,-150.0,0.00015288,2]
[396589699,1765062631684,-150.0,0.00015288,2]
[396589700,1765062631694,-277.0,0.00015288,2]
[396589701,1765062631704,-200.0,0.00015418,2]
[396589702,1765062631713,-1901.1,0.00015445,2]
[396589703,1765062631723,-179.0,0.00015634,2]
[396589704,1765062631732,-150.0,0.00015734,2]
[396589705,1765062631741,-188.82551623,0.00015891,2]
[396589706,1765062631751,-168.0,0.00015978,2]
[396589707,1765062631760,-193.0,0.00015984,2]
[396589708,1765062631770,-300.0,0.00015984,2]
[396589709,1765062631779,-1200.0,0.00015984,2]
[396589710,1765062631788,-300.0,0.00015984,2]
[396589711,1765062631797,-500.0,0.00015985,2]
[396589712,1765062631807,-500.0,0.00015985,2]
[396589713,1765062631816,-500.0,0.00015985,2]
[396589714,1765062631825,-500.0,0.00015985,2]
[396589715,1765062631834,-500.0,0.00015985,2]
[396589716,1765062632096,-500.0,0.00015985,2]
[396589717,1765062632117,-500.0,0.00015985,2]
[396589718,1765062632127,-296.70282633,0.00015985,2]
[396589719,1765062632135,-500.0,0.00015985,2]
[396589720,1765062632145,-500.0,0.00015985,2]
[396589721,1765062632154,-500.0,0.00015985,2]
[396589722,1765062632164,-500.0,0.00015985,2]
[396589723,1765062632173,-500.0,0.00015985,2]
[396589724,1765062632182,-500.0,0.00015985,2]
[396589725,1765062632191,-526.81859318,0.00015985,2]
[396589726,1765062632200,-500.0,0.00015985,2]
[396589727,1765062632209,-500.0,0.00015985,2]
[396589728,1765062632219,-500.0,0.00015985,2]
[396589729,1765062632227,-500.0,0.00015985,2]
[396589730,1765062632237,-500.0,0.00015985,2]
[396589731,1765062632246,-500.0,0.00015985,2]
[396589732,1765062632255,-500.0,0.00015985,2]
[396589733,1765062632264,-500.0,0.00015985,2]
[396589734,1765062632273,-500.0,0.00015985,2]
[396589735,1765062632283,-500.0,0.00015985,2]
[396589736,1765062632293,-500.0,0.00015985,2]
[396589737,1765062632302,-500.0,0.00015985,2]
[396589738,1765062632311,-500.0,0.00015985,2]
[396589739,1765062632320,-500.0,0.00015985,2]
[396589740,1765062632329,-500.0,0.00015985,2]
[396589741,1765062632338,-500.0,0.00015985,2]
[396589742,1765062632347,-500.0,0.00015985,2]
[396589743,1765062632356,-500.0,0.00015985,2]
[396589744,1765062632365,-500.0,0.00015985,2]
[396589745,1765062632376,-500.0,0.00015985,2]
[396589746,1765062632385,-500.0,0.00015985,2]
[396589747,1765062632395,-500.0,0.00015985,2]
[396589748,1765062632405,-500.0,0.00015985,2]
[396589749,1765062632414,-500.0,0.00015985,2]
[396589750,1765062632424,-500.0,0.00015985,2]
[396589751,1765062632433,-500.0,0.00015985,2]
[396589752,1765062632442,-500.0,0.00015985,2]
[396589753,1765062632451,-500.0,0.00015985,2]
[396589754,1765062632460,-350.0,0.00015985,2]
[396589755,1765062632469,-500.0,0.00015985,2]
[396589756,1765062632478,-500.0,0.00015985,2]
[396589757,1765062632488,-334.55048395,0.00015985,2]
[396589758,1765062632497,-772.15063,0.00016,2]
[396589759,1765062632507,-165.81,0.00016083,2]
[396589760,1765062632516,-5031.02105051,0.00016121,2]
[396589761,1765062632526,-2427.983,0.00016129,2]
[396589762,1765062632535,-9999.99,0.00016129,2]
[396589763,1765062632544,-168.0,0.00016129,2]
[396589764,1765062632553,-170.67478894,0.00016129,2]
[396589765,1765062632563,-7661.80367421,0.00016136,2]
[396589766,1765062632572,-930.0,0.00016186,2]
[396589767,1765062632581,-5031.02105044,0.00016208,2]
[396589768,1765062632590,-605.0,0.00016211,2]
[396589769,1765062632600,-144993.97052356,0.00016212,2]
[396589770,1765062632612,-7365.31828011,0.00016212,2]
[396589771,1765062632623,-7157.91154975,0.00016212,2]
[396589772,1765062632634,-12282.91278546,0.00016212,2]
[396589775,1765062632686,-517.13214452,0.00016211,2]
[396589776,1765062632695,-150.95829783,0.00016211,2]
[396589777,1765062632705,-4473.7847627,0.00016212,2]
[396589778,1765062632715,-2381.13261799,0.00016212,2]
[396589779,1765062632726,-11739.00183638,0.00016212,2]
[396589780,1765062632738,-877.88000038,0.00016212,2]
[396589781,1765062632749,-832.22856812,0.00016212,2]
[396589782,1765062632761,-286.98,0.00016212,2]
[396589783,1765062632771,-2332.85146012,0.00016212,2]
[396589784,1765062632793,-517.52587944,0.00016212,2]
[396589785,1765062632804,-619.35433313,0.00016212,2]
[396589786,1765062632820,-1871.09312592,0.00016212,2]
[396589787,1765062632851,-1378.190429,0.00016212,2]
[396589803,1765062637830,-306493.15205346,0.00016212,2]
[396589810,1765062637891,-875.29292091,0.00016212,2]
[396589812,1765062637903,-1510.0,0.00016212,2]
[396589814,1765062637916,-252.52558488,0.00016212,2]
[396589817,1765062637927,-66641.45898793,0.00016212,2]
[396589818,1765062637940,-713.41363182,0.00016212,2]
[396589819,1765062637958,-1968.24209748,0.00016212,2]
[396589820,1765062638177,-4707.47864378,0.00016212,2]
[396589830,1765062640082,-2480.13407107,0.00016212,2]
[396589831,1765062640106,-562.73,0.00016212,2]
[396589832,1765062640118,-251.37,0.00016212,2]
[396589833,1765062640130,-5805.25883955,0.00016212,2]
[396589834,1765062640141,-168628.80701706,0.00016212,2]
[396589835,1765062640151,-7661.8036742,0.00016221,2]
[396589836,1765062640160,-1000.0,0.00016236,3]
[396589837,1765062640169,-594.15409785,0.00016238,2]
[396589838,1765062640179,-2500.0,0.00016238,2]
[396589839,1765062640189,-5031.02105044,0.00016294,2]
[396589840,1765062640198,-7661.8036742,0.00016306,2]
[396589841,1765062640207,-150.0,0.00016337,2]
[396589842,1765062640217,-435.15470948,0.00016338,2]
[396589843,1765062640226,-1000.0,0.00016338,2]
[396589844,1765062640236,-10000.0,0.00016338,2]
[396589845,1765062640245,-193.0,0.00016342,2]
[396589846,1765062640254,-1106.43201635,0.00016373,2]
[396589847,1765062640264,-500.0,0.00016373,2]
[396589848,1765062640274,-304.0959739,0.00016373,2]
[396589849,1765062640283,-561.88587171,0.00016373,2]
[396589850,1765062640293,-5031.02105044,0.00016381,2]
[396589851,1765062640302,-7661.8036742,0.00016391,2]
[396589853,1765062640311,-168.0,0.00016391,2]
[396589854,1765062640320,-309.60065408,0.00016428,2]
[396589855,1765062640330,-154.357024,0.00016438,2]
[396589856,1765062640339,-154.357024,0.00016438,2]
[396589857,1765062640349,-154.357024,0.00016438,2]
[396589858,1765062640358,-154.357024,0.00016438,2]
[396589859,1765062640367,-154.357024,0.00016438,2]
[396589860,1765062640377,-500.0,0.00016438,2]
[396589861,1765062640386,-154.357024,0.00016438,2]
[396589862,1765062640395,-389.64233218,0.00016438,2]
[396589863,1765062640405,-154.357024,0.00016438,2]
[396589864,1765062640414,-154.357024,0.00016438,2]
[396589866,1765062640423,-154.357024,0.00016438,2]
[396589867,1765062640433,-154.357024,0.00016438,2]
[396589868,1765062640443,-154.357024,0.00016438,2]
[396589869,1765062640452,-154.357024,0.00016438,2]
[396589870,1765062640461,-154.357024,0.00016438,2]
[396589871,1765062640470,-154.357024,0.00016438,2]
[396589872,1765062640480,-154.357024,0.00016438,2]
[396589873,1765062640489,-154.357024,0.00016438,2]
[396589874,1765062640499,-154.357024,0.00016438,2]
[396589875,1765062640508,-154.357024,0.00016438,2]
[396589876,1765062640518,-154.357024,0.00016438,2]
[396589877,1765062640527,-154.357024,0.00016438,2]
[396589878,1765062640536,-154.357024,0.00016438,2]
[396589879,1765062640545,-154.357024,0.00016438,2]
[396589880,1765062640555,-154.357024,0.00016438,2]
[396589881,1765062640564,-154.357024,0.00016438,2]
[396589882,1765062640573,-154.357024,0.00016438,2]
[396589883,1765062640587,-154.357024,0.00016438,2]
[396589884,1765062640596,-154.357024,0.00016438,2]
[396589885,1765062640606,-154.357024,0.00016438,2]
[396589886,1765062640615,-154.357024,0.00016438,2]
[396589887,1765062640624,-154.357024,0.00016438,2]
[396589888,1765062640634,-500.0,0.00016438,2]
[396589889,1765062640644,-502.86904478,0.00016438,2]
[396589890,1765062640653,-501.83538398,0.00016438,2]
[396589891,1765062640663,-500.0,0.00016438,2]
[396589892,1765062640672,-500.0,0.00016438,2]
[396589893,1765062640682,-500.0,0.00016438,2]
[396589894,1765062640692,-1128.34,0.00016438,2]
[396589895,1765062640702,-502.95301589,0.00016438,2]
[396589896,1765062640712,-500.0,0.00016438,2]
[396589897,1765062640722,-209.80465977,0.00016438,2]
[396589898,1765062640731,-503.25224283,0.00016438,2]
[396589899,1765062640740,-500.0,0.00016438,2]
[396589900,1765062640750,-492.9402367,0.00016438,2]
[396589901,1765062640759,-1866.58,0.00016438,2]
[396589902,1765062640769,-500.0,0.00016438,2]
[396589903,1765062640778,-500.0,0.00016438,2]
[396589904,1765062640788,-505.55571931,0.00016438,2]
[396589905,1765062640798,-502.98068224,0.00016438,2]
[396589906,1765062640808,-500.0,0.00016438,2]
[396589907,1765062640818,-500.0,0.00016438,2]
[396589908,1765062640828,-2051.79,0.00016438,2]
[396589909,1765062640838,-500.0,0.00016438,2]
[396589910,1765062640848,-500.0,0.00016438,2]
[396589911,1765062640857,-500.0,0.00016438,2]
[396589912,1765062640867,-329.82736398,0.00016438,2]
[396589913,1765062640876,-741.48,0.00016438,2]
[396589914,1765062640886,-500.0,0.00016438,2]
[396589915,1765062640900,-500.0,0.00016438,2]
[396589916,1765062640910,-500.0,0.00016438,2]
[396589917,1765062640920,-300.0,0.00016438,2]
[396589918,1765062640929,-261.01151653,0.00016438,2]
[396589919,1765062640941,-640.5,0.00016438,2]
[396589920,1765062640950,-500.0,0.00016438,2]
[396589921,1765062640960,-500.0,0.00016438,2]
[396589922,1765062640972,-622.37755707,0.00016438,2]
[396589923,1765062640985,-500.0,0.00016438,2]
[396589924,1765062640995,-500.0,0.00016438,2]
[396589925,1765062641006,-278.00854149,0.00016438,2]
[396589926,1765062641015,-483.08769176,0.00016438,2]
[396589927,1765062641025,-500.0,0.00016438,2]
[396589928,1765062641035,-500.0,0.00016438,2]
[396589929,1765062641044,-500.0,0.00016438,2]
[396589930,1765062641054,-500.0,0.00016438,2]
[396589931,1765062641063,-1851.33,0.00016438,2]
[396589932,1765062641072,-551.1,0.00016438,2]
[396589933,1765062641082,-500.0,0.00016438,2]
[396589934,1765062641092,-500.0,0.00016438,2]
[396589935,1765062641101,-500.0,0.00016438,2]
[396589936,1765062641111,-500.0,0.00016438,2]
[396589937,1765062641120,-500.0,0.00016438,2]
[396589938,1765062641130,-500.0,0.00016438,2]
[396589939,1765062641139,-504.55558342,0.00016438,2]
[396589940,1765062641149,-500.0,0.00016438,2]
[396589941,1765062641158,-500.0,0.00016438,2]
[396589942,1765062641167,-500.0,0.00016438,2]
[396589943,1765062641176,-502.77983448,0.00016438,2]
[396589944,1765062641186,-500.0,0.00016438,2]
[396589945,1765062641195,-500.0,0.00016438,2]
[396589946,1765062641205,-500.0,0.00016438,2]
[396589947,1765062641215,-500.0,0.00016438,2]
[396589948,1765062641225,-500.0,0.00016438,2]
[396589949,1765062641234,-500.0,0.00016438,2]
[396589950,1765062641243,-502.72705575,0.00016438,2]
[396589951,1765062641253,-500.0,0.00016438,2]
[396589952,1765062641262,-500.0,0.00016438,2]
[396589953,1765062641273,-500.0,0.00016438,2]
[396589954,1765062641283,-500.0,0.00016438,2]
[396589955,1765062641294,-500.0,0.00016438,2]
[396589956,1765062641305,-1940.8,0.00016438,2]
[396589957,1765062641315,-500.0,0.00016438,2]
[396589958,1765062641324,-1733.08,0.00016438,2]
[396589959,1765062641334,-500.0,0.00016438,2]
[396589960,1765062641344,-500.0,0.00016438,2]
[396589961,1765062641354,-500.0,0.00016438,2]
[396589962,1765062641367,-500.0,0.00016438,2]
[396589963,1765062641378,-500.0,0.00016438,2]
[396589964,1765062641388,-500.0,0.00016438,2]
[396589965,1765062641398,-500.0,0.00016438,2]
[396589966,1765062641407,-500.0,0.00016438,2]
[396589967,1765062641416,-293.71668664,0.00016438,2]
[396589968,1765062641429,-500.0,0.00016438,2]
[396589969,1765062641439,-500.0,0.00016438,2]
[396589970,1765062641450,-500.0,0.00016438,2]
[396589971,1765062641462,-500.0,0.00016438,2]
[396589972,1765062641471,-496.09231865,0.00016438,2]
[396589973,1765062641482,-536.63128475,0.00016438,2]
[396589974,1765062641491,-501.24416574,0.00016438,2]
[396589975,1765062641501,-500.0,0.00016438,2]
[396589976,1765062641510,-500.0,0.00016438,2]
[396589977,1765062641519,-500.0,0.00016438,2]
[396589978,1765062641529,-500.0,0.00016438,2]
[396589979,1765062641539,-500.0,0.00016438,2]
[396589980,1765062641548,-500.0,0.00016438,2]
[396589981,1765062641557,-500.0,0.00016438,2]
[396589982,1765062641567,-500.64940814,0.00016438,2]
[396589983,1765062641576,-500.0,0.00016438,2]
[396589984,1765062641586,-556.03099801,0.00016438,2]
[396589985,1765062641595,-500.0,0.00016438,2]
[396589986,1765062641605,-500.0,0.00016438,2]
[396589987,1765062641614,-500.0,0.00016438,2]
[396589988,1765062641623,-500.0,0.00016438,2]
[396589989,1765062641633,-500.0,0.00016438,2]
[396589990,1765062641642,-500.0,0.00016438,2]
[396589991,1765062641651,-500.0,0.00016438,2]
[396589992,1765062641661,-500.0,0.00016438,2]
[396589993,1765062641670,-500.0,0.00016438,2]
[396589994,1765062641679,-500.0,0.00016438,2]
[396589995,1765062641688,-500.0,0.00016438,2]
[396589996,1765062641698,-500.0,0.00016438,2]
[396589997,1765062641707,-500.0,0.00016438,2]
[396589998,1765062641716,-500.0,0.00016438,2]
[396589999,1765062641725,-500.0,0.00016438,2]
[396590000,1765062641735,-1889.1,0.00016438,2]
[396590001,1765062641744,-500.0,0.00016438,2]
[396590002,1765062641753,-503.41926375,0.00016438,2]
[396590003,1765062641763,-500.0,0.00016438,2]
[396590004,1765062641772,-500.0,0.00016438,2]
[396590005,1765062641782,-500.0,0.00016438,2]
[396590006,1765062641791,-500.0,0.00016438,2]
[396590007,1765062641801,-2111.47,0.00016438,2]
[396590008,1765062641811,-1815.25,0.00016438,2]
[396590009,1765062641821,-500.0,0.00016438,2]
[396590010,1765062641830,-500.0,0.00016438,2]
[396590011,1765062641840,-500.0,0.00016438,2]
[396590012,1765062641850,-500.0,0.00016438,2]
[396590013,1765062641860,-500.0,0.00016438,2]
[396590014,1765062641870,-500.0,0.00016438,2]
[396590015,1765062641881,-2007.83,0.00016438,2]
[396590016,1765062641892,-500.0,0.00016438,2]
[396590017,1765062641904,-500.0,0.00016438,2]
[396590018,1765062641913,-257.02268781,0.00016438,2]
[396590019,1765062641923,-484.86137506,0.00016438,2]
[396590020,1765062641934,-1656.96,0.00016438,2]
[396590021,1765062641944,-500.0,0.00016438,2]
[396590022,1765062641954,-2078.43,0.00016438,2]
[396590023,1765062641965,-500.0,0.00016438,2]
[396590024,1765062641976,-500.0,0.00016438,2]
[396590025,1765062641987,-500.0,0.00016438,2]
[396590026,1765062641997,-500.0,0.00016438,2]
[396590027,1765062642007,-500.0,0.00016438,2]
[396590028,1765062642017,-500.0,0.00016438,2]
[396590029,1765062642027,-539.19,0.00016438,2]
[396590030,1765062642039,-500.0,0.00016438,2]
[396590031,1765062642050,-500.0,0.00016438,2]
[396590032,1765062642060,-500.0,0.00016438,2]
[396590033,1765062642071,-500.0,0.00016438,2]
[396590034,1765062642081,-1706.51,0.00016438,2]
[396590035,1765062642091,-500.0,0.00016438,2]
[396590036,1765062642101,-500.0,0.00016438,2]
[396590037,1765062642110,-500.0,0.00016438,2]
[396590038,1765062642119,-500.0,0.00016438,2]
[396590039,1765062642129,-500.0,0.00016438,2]
[396590040,1765062642138,-776.07,0.00016438,2]
[396590041,1765062642147,-500.0,0.00016438,2]
[396590042,1765062642156,-500.0,0.00016438,2]
[396590043,1765062642166,-500.0,0.00016438,2]
[396590044,1765062642176,-531.56127084,0.00016438,2]
[396590045,1765062642185,-1918.53,0.00016438,2]
[396590046,1765062642195,-566.88025106,0.00016438,2]
[396590047,1765062642204,-500.0,0.00016438,2]
[396590048,1765062642213,-500.0,0.00016438,2]
[396590049,1765062642222,-500.0,0.00016438,2]
[396590050,1765062642232,-500.0,0.00016438,2]
[396590051,1765062642241,-1523.53,0.00016438,2]
[396590052,1765062642251,-500.0,0.00016438,2]
[396590053,1765062642262,-500.0,0.00016438,2]
[396590054,1765062642273,-500.0,0.00016438,2]
[396590055,1765062642283,-500.0,0.00016438,2]
[396590056,1765062642292,-1408.0,0.00016438,2]
[396590057,1765062642302,-500.0,0.00016438,2]
[396590058,1765062642311,-500.0,0.00016438,2]
[396590059,1765062642320,-2200.99,0.00016438,2]
[396590060,1765062642330,-500.0,0.00016438,2]
[396590061,1765062642339,-501.69452255,0.00016438,2]
[396590062,1765062642348,-500.0,0.00016438,2]
[396590063,1765062642358,-933.29,0.00016438,2]
[396590064,1765062642368,-500.0,0.00016438,2]
[396590065,1765062642377,-500.0,0.00016438,2]
[396590066,1765062642387,-500.0,0.00016438,2]
[396590067,1765062642396,-500.0,0.00016438,2]
[396590068,1765062642406,-500.0,0.00016438,2]
[396590069,1765062642415,-500.0,0.00016438,2]
[396590070,1765062642424,-500.0,0.00016438,2]
[396590071,1765062642434,-500.0,0.00016438,2]
[396590072,1765062642443,-534.38256615,0.00016438,2]
[396590073,1765062642453,-500.0,0.00016438,2]
[396590074,1765062642462,-160.08600271,0.00016438,2]
[396590075,1765062642473,-500.0,0.00016438,2]
[396590076,1765062642482,-500.0,0.00016438,2]
[396590077,1765062642492,-358.26990661,0.00016438,2]
[396590078,1765062642502,-500.0,0.00016438,2]
[396590080,1765062642512,-500.0,0.00016438,2]
[396590082,1765062642521,-500.0,0.00016438,2]
[396590084,1765062642530,-500.0,0.00016438,2]
[396590086,1765062642540,-502.01367921,0.00016438,2]
[396590087,1765062642550,-503.68225415,0.00016438,2]
[396590088,1765062642560,-500.0,0.00016438,2]
[396590089,1765062642570,-500.0,0.00016438,2]
[396590090,1765062642581,-2047.89,0.00016438,2]
[396590091,1765062642591,-500.0,0.00016438,2]
[396590092,1765062642601,-500.0,0.00016438,2]
[396590093,1765062642611,-500.0,0.00016438,2]
[396590094,1765062642620,-2046.1,0.00016438,2]
[396590095,1765062642630,-500.0,0.00016438,2]
[396590097,1765062642639,-500.0,0.00016438,2]
[396590098,1765062642649,-500.0,0.00016438,2]
[396590099,1765062642659,-1737.44,0.00016438,2]
[396590100,1765062642668,-285.18737421,0.00016438,2]
[396590101,1765062642678,-500.0,0.00016438,2]
[396590102,1765062642688,-590.82,0.00016438,2]
[396590103,1765062642697,-500.0,0.00016438,2]
[396590104,1765062642707,-500.0,0.00016438,2]
[396590105,1765062642718,-165.25683498,0.00016438,2]
[396590106,1765062642727,-500.0,0.00016438,2]
[396590107,1765062642737,-500.0,0.00016438,2]
[396590108,1765062642746,-502.71979708,0.00016438,2]
[396590109,1765062642755,-500.0,0.00016438,2]
[396590110,1765062642764,-500.0,0.00016438,2]
[396590111,1765062642774,-500.0,0.00016438,2]
[396590112,1765062642784,-500.0,0.00016438,2]
[396590113,1765062642793,-500.0,0.00016438,2]
[396590114,1765062642803,-503.84313609,0.00016438,2]
[396590115,1765062642812,-500.0,0.00016438,2]
[396590116,1765062642822,-500.0,0.00016438,2]
[396590117,1765062642832,-1782.83,0.00016438,2]
[396590118,1765062642841,-500.0,0.00016438,2]
[396590119,1765062642851,-500.0,0.00016438,2]
[396590120,1765062642860,-500.0,0.00016438,2]
[396590121,1765062642870,-500.0,0.00016438,2]
[396590122,1765062642879,-500.0,0.00016438,2]
[396590123,1765062642890,-505.98218405,0.00016438,2]
[396590124,1765062642902,-717.9,0.00016438,2]
[396590125,1765062642911,-500.0,0.00016438,2]
[396590126,1765062642921,-500.0,0.00016438,2]
[396590127,1765062642935,-503.688638,0.00016438,2]
[396590128,1765062642944,-500.0,0.00016438,2]
[396590129,1765062642955,-500.0,0.00016438,2]
[396590130,1765062642964,-500.0,0.00016438,2]
[396590131,1765062642976,-500.0,0.00016438,2]
[396590132,1765062642987,-500.0,0.00016438,2]
[396590133,1765062642996,-500.0,0.00016438,2]
[396590134,1765062643006,-500.0,0.00016438,2]
[396590135,1765062643016,-639.16362347,0.00016438,2]
[396590136,1765062643026,-500.0,0.00016438,2]
[396590137,1765062643035,-557.50237603,0.00016438,2]
[396590138,1765062643045,-2936.6,0.00016438,2]
[396590139,1765062643054,-781.77,0.00016438,2]
[396590140,1765062643064,-500.0,0.00016438,2]
[396590141,1765062643074,-500.0,0.00016438,2]
[396590142,1765062643084,-500.0,0.00016438,2]
[396590143,1765062643093,-500.0,0.00016438,2]
[396590144,1765062643103,-1750.1,0.00016438,2]
[396590145,1765062643113,-500.0,0.00016438,2]
[396590146,1765062643123,-500.0,0.00016438,2]
[396590147,1765062643132,-500.0,0.00016438,2]
[396590148,1765062643142,-500.0,0.00016438,2]
[396590149,1765062643152,-500.0,0.00016438,2]
[396590150,1765062643162,-500.0,0.00016438,2]
[396590151,1765062643172,-500.0,0.00016438,2]
[396590152,1765062643181,-584.47,0.00016438,2]
[396590153,1765062643191,-500.0,0.00016438,2]
[396590154,1765062643201,-739.25,0.00016438,2]
[396590155,1765062643213,-500.0,0.00016438,2]
[396590156,1765062643223,-500.0,0.00016438,2]
[396590157,1765062643233,-500.0,0.00016438,2]
[396590158,1765062643242,-500.0,0.00016438,2]
[396590159,1765062643252,-634.94975894,0.00016438,2]
[396590160,1765062643262,-500.0,0.00016438,2]
[396590161,1765062643273,-465.79927056,0.00016438,2]
[396590162,1765062643284,-500.0,0.00016438,2]
[396590163,1765062643294,-2241.17,0.00016438,2]
[396590164,1765062643304,-500.0,0.00016438,2]
[396590165,1765062643315,-500.0,0.00016438,2]
[396590166,1765062643325,-1000.0,0.00016438,2]
[396590167,1765062643336,-500.0,0.00016438,2]
[396590168,1765062643344,-500.0,0.00016438,2]
[396590169,1765062643355,-636.3,0.00016438,2]
[396590170,1765062643364,-501.595231,0.00016438,2]
[396590171,1765062643373,-500.0,0.00016438,2]
[396590172,1765062643383,-1459.42,0.00016438,2]
[396590173,1765062643393,-500.0,0.00016438,2]
[396590174,1765062643403,-500.0,0.00016438,2]
[396590175,1765062643412,-500.0,0.00016438,2]
[396590176,1765062643422,-2286.03,0.00016438,2]
[396590177,1765062643432,-500.0,0.00016438,2]
[396590178,1765062643441,-500.0,0.00016438,2]
[396590179,1765062643450,-500.0,0.00016438,2]